bitfinex/quotes_SOLUSD_20250118
["timestamp","ask_amount","ask_price","bid_price","bid_amount"]
[1737213228525,23.02992138,243.47,243.41,0.063]
[1737213228724,0.77005167,243.5,243.41,0.063]
[1737213228725,23.02992138,243.42,243.41,0.063]
[1737213229523,30.81881012,243.42,243.36,0.063]
[1737213229702,23.02992138,243.37,243.21,0.26581654]
[1737213229898,23.02992138,243.29,243.21,0.26581654]
[1737213230309,23.02992138,243.31,243.25,20.0]
[1737213230502,5.13074269,243.36,243.26,0.26604045]
[1737213230706,23.02992138,243.29,243.26,0.26604045]
[1737213231010,23.02992138,243.29,243.23,0.2660988]
[1737213231413,23.02992138,243.33,243.27,20.0]
[1737213231598,23.02992138,243.33,243.28,0.26594365]
[1737213232212,23.02992138,243.45,243.28,0.26594365]
[1737213232213,23.02992138,243.47,243.35,20.0]
[1737213232418,23.02992138,243.49,243.41,23.02992138]
[1737213232712,23.02992138,243.47,243.36,0.26510289]
[1737213232922,23.02992138,243.42,243.36,0.26510289]
[1737213233098,23.02992138,243.4,243.34,0.26549993]
[1737213233306,23.02992138,243.36,243.27,23.02992138]
[1737213233524,23.02992138,243.36,243.28,0.26571201]
[1737213233720,23.02992138,243.36,243.29,0.26570508]
[1737213234031,23.02992138,243.38,243.3,20.26570592]
[1737213234226,23.02992138,243.44,243.38,20.0]
[1737213234403,23.02992138,243.42,243.38,20.0]
[1737213234908,23.02992138,243.42,243.36,20.0]
[1737213235126,23.02992138,243.38,243.29,23.02992138]
[1737213235426,23.02992138,243.44,243.35,23.02992138]
[1737213235600,23.02992138,243.44,243.36,0.26538567]
[1737213235804,23.02992138,243.46,243.37,23.02992138]
[1737213236011,23.02992138,243.44,243.38,0.26521949]
[1737213236211,23.02992138,243.44,243.38,20.26521949]
[1737213236423,0.77042118,243.49,243.38,20.26521949]
[1737213236632,23.02992138,243.46,243.38,20.26521949]
[1737213237019,23.02992138,243.48,243.39,23.02992138]
[1737213237227,23.02992138,243.43,243.35,23.02992138]
[1737213237417,23.02992138,243.45,243.36,0.26533331]
[1737213238229,23.02992138,243.47,243.39,23.02992138]
[1737213238535,23.02992138,243.49,243.41,23.02992138]
[1737213238733,23.02992138,243.47,243.42,0.26509174]
[1737213238923,23.02992138,243.47,243.4,0.26510961]
[1737213239635,1.6728,243.52,243.41,23.02992138]
[1737213239636,23.02992138,243.51,243.41,23.02992138]
[1737213239813,23.02992138,243.51,243.42,0.26496276]
[1737213240207,23.02992138,243.47,243.38,23.02992138]
[1737213240513,23.02992138,243.43,243.39,0.26532979]
[1737213240711,23.02992138,243.45,243.39,0.26532979]
[1737213241425,14.17661121,243.46,243.38,0.26529476]
[1737213241617,14.17661121,243.44,243.38,0.26529476]
[1737213242340,14.17661121,243.4,243.36,0.063]
[1737213242639,14.17661121,243.4,243.16,0.32878161]
[1737213242640,20.0,243.33,243.16,0.32878161]
[1737213242842,14.17661121,243.21,243.16,0.063]
[1737213243213,14.17661121,243.25,243.16,14.23961121]
[1737213243417,14.17661121,243.25,243.17,0.26648107]
[1737213243846,14.17661121,243.31,243.23,20.0]
[1737213244017,14.17661121,243.31,243.24,0.26623178]
[1737213244642,14.17661121,243.33,243.24,14.44284299]
[1737213245315,23.05847275,243.34,243.25,23.05847275]
[1737213245535,23.05847275,243.34,243.26,0.26598514]
[1737213247429,23.05847275,243.37,243.28,23.05847275]
[1737213247623,23.05847275,243.37,243.16,0.063]
[1737213247624,23.05847275,243.39,243.3,23.05847275]
[1737213247934,23.05847275,243.39,243.31,0.26568458]
[1737213248820,23.05847275,243.39,243.31,24.04256858]
[1737213249335,23.05847275,243.39,243.34,20.0]
[1737213249540,23.05847275,243.35,243.32,0.26554273]
[1737213249723,0.77048367,243.44,243.32,23.05847275]
[1737213249925,23.08847275,243.55,243.46,20.0]
[1737213250121,0.03,243.55,243.47,0.26477673]
[1737213250443,0.03,243.55,243.48,20.0]
[1737213250615,0.03,243.55,243.49,0.26451407]
[1737213250813,0.03,243.55,243.53,43.05847275]
[1737213251034,0.03,243.55,243.5,0.26417586]
[1737213251229,23.05847275,243.54,243.47,0.26457546]
[1737213251540,23.05847275,243.52,243.45,0.26463837]
[1737213251742,23.05847275,243.52,243.43,0.26484333]
[1737213251930,23.05847275,243.52,243.45,20.0]
[1737213252124,23.05847275,243.52,243.46,0.26479936]
[1737213253120,23.05847275,243.48,243.37,0.26482704]
[1737213253340,23.05847275,243.44,243.35,0.26528591]
[1737213253523,23.05847275,243.46,243.36,23.05847275]
[1737213253718,23.05847275,243.5,243.38,23.776884]
[1737213253918,23.05847275,243.5,243.4,23.05847275]
[1737213254123,23.05847275,243.5,243.41,0.26504784]
[1737213254519,0.80016824,243.55,243.43,20.0]
[1737213254724,0.03,243.55,243.54,46.83535675]
[1737213254925,0.03,243.55,243.54,52.10255469]
[1737213255126,0.03,243.66,243.61,20.0]
[1737213255326,0.03,243.66,243.61,47.09889866]
[1737213256436,0.03,243.66,243.61,24.04042591]
[1737213256634,0.03,243.66,243.61,44.04042591]
[1737213256836,0.03,243.66,243.61,67.09889866]
[1737213257042,0.03,243.66,243.61,47.09889866]
[1737213257944,0.03,243.66,243.61,23.32201466]
[1737213258654,0.03,243.66,243.65,20.0]
[1737213258846,23.05847275,243.85,243.65,43.61400577]
[1737213259048,23.05847275,243.85,243.78,20.0]
[1737213259357,23.05847275,243.85,243.79,0.26263403]
[1737213259859,23.05847275,243.87,243.79,0.26263403]
[1737213260047,23.05847275,243.98,243.89,20.0]
[1737213260256,23.05847275,243.9,243.79,23.05847275]
[1737213260446,23.05847275,243.88,243.8,0.26237665]
[1737213260641,23.05847275,243.86,243.8,0.26237665]
[1737213260833,23.05847275,243.86,243.78,0.26260461]
[1737213261146,23.05847275,243.8,243.7,0.26266152]
[1737213261333,23.05847275,243.78,243.7,0.26266152]
[1737213261532,23.05847275,243.84,243.74,23.05847275]
[1737213261734,23.05847275,243.84,243.75,0.26273914]
[1737213261950,23.05847275,243.86,243.78,23.05847275]
[1737213262130,23.82742816,243.94,243.85,23.05847275]
[1737213262334,23.05847275,243.92,243.83,23.05847275]
[1737213262545,23.05847275,243.9,243.81,23.05847275]
[1737213262744,0.76895278,243.89,243.81,23.05847275]
[1737213262947,1.0,244.0,243.91,20.0]
[1737213263143,1.0,244.0,243.95,23.05847275]
[1737213263344,23.05847275,243.98,243.89,23.05847275]
[1737213263654,1.0,244.0,243.93,23.05847275]
[1737213263853,1.0,244.0,243.94,0.26172691]
[1737213264049,1.0,244.0,243.95,23.05847275]
[1737213264354,1.0,244.0,243.96,0.26157923]
[1737213265150,1.0,244.0,243.97,23.05847275]
[1737213265339,1.0,244.0,243.95,23.05847275]
[1737213265652,1.0,244.0,243.97,23.05847275]
[1737213265849,1.0,244.0,243.98,0.26157034]
[1737213266150,1.0,244.0,243.99,23.05847275]
[1737213266452,0.88899078,244.0,243.97,23.05847275]
[1737213266750,0.91899078,244.0,243.93,23.05847275]
[1737213266953,1.68753752,244.0,243.93,23.05847275]
[1737213267346,0.91899078,244.0,243.97,23.05847275]
[1737213267656,27.15697275,243.99,243.86,23.05847275]
[1737213267953,23.05847275,243.95,243.87,0.26230965]
[1737213268152,0.76874505,243.94,243.87,0.26230965]
[1737213268658,0.76874505,243.94,243.87,0.26231965]
[1737213269158,23.05847275,243.89,243.8,23.05847275]
[1737213269453,23.05847275,243.85,243.76,23.05847275]
[1737213269641,23.05847275,243.81,243.72,23.05847275]
[1737213269846,0.76919147,243.8,243.73,0.26321126]
[1737213270233,20.0,243.75,243.65,0.26319364]
[1737213270455,23.05847275,243.66,243.63,16.403631]
[1737213270758,23.05847275,243.64,243.55,0.32710993]
[1737213270952,23.05847275,243.57,243.55,0.063]
[1737213271347,0.76988968,243.56,243.55,0.063]
[1737213271557,23.05847275,243.57,243.55,0.063]
[1737213272338,0.76981811,243.56,243.55,0.063]
[1737213272546,23.05847275,243.57,243.55,0.063]
[1737213272844,21.61662953,243.8,243.55,0.063]
[1737213272845,23.05847275,243.63,243.55,0.063]
[1737213273050,23.05847275,243.63,243.55,23.38555697]
[1737213273255,23.05847275,243.63,243.56,0.26406356]
[1737213274166,23.05847275,243.72,243.62,23.05847275]
[1737213274343,23.05847275,243.74,243.65,23.05847275]
[1737213274546,23.05847275,243.76,243.67,23.05847275]
[1737213274857,23.05847275,243.76,243.68,0.26338321]
[1737213275539,0.76935222,243.81,243.68,0.26338321]
[1737213275741,23.05847275,243.8,243.61,0.26325972]
[1737213275942,23.05847275,243.8,243.71,23.05847275]
[1737213276245,23.05847275,243.84,243.75,23.05847275]
[1737213276557,23.05847275,243.82,243.73,23.05847275]
[1737213276763,23.05847275,243.82,243.74,0.2630168]
[1737213277162,23.05847275,243.84,243.75,23.05847275]
[1737213277353,23.05847275,243.84,243.76,0.26286728]
[1737213277743,23.05847275,243.86,243.77,23.05847275]
[1737213278059,23.05847275,244.05,243.62,13.17358346]
[1737213278060,23.05847275,243.78,243.63,0.26264556]
[1737213278266,23.05847275,243.81,243.71,23.05847275]
[1737213278454,23.05847275,243.81,243.72,0.26313605]
[1737213278656,23.05847275,243.83,243.73,23.05847275]
[1737213278960,23.05847275,243.87,243.77,23.05847275]
[1737213279145,23.05847275,243.85,243.78,0.26268375]
[1737213279345,23.05847275,243.83,243.78,0.26268375]
[1737213279961,0.76891378,243.92,243.78,0.26268375]
[1737213280261,23.05847275,243.86,243.78,0.26268375]
[1737213280464,0.76891378,243.92,243.78,0.26268375]
[1737213280465,23.05847275,243.88,243.8,20.0]
[1737213280670,23.05847275,243.86,243.81,0.26243951]
[1737213283165,0.76882468,243.95,243.81,0.26243951]
[1737213283166,23.05847275,243.88,243.81,24.03932351]
[1737213283373,23.05847275,243.88,243.84,20.0]
[1737213283672,23.05847275,243.9,243.85,0.26223867]
[1737213284455,1.68765111,244.0,243.87,20.0]
[1737213284662,23.05847275,243.94,243.88,0.26192304]
[1737213285374,23.05847275,243.96,243.89,20.0]
[1737213285669,23.05847275,243.96,243.91,20.0]
[1737213285871,23.05847275,243.96,243.92,0.26178984]
[1737213286252,23.05847275,243.94,243.89,0.26178876]
[1737213286459,23.05847275,243.9,243.89,0.26178876]
[1737213286648,23.05847275,243.9,243.81,0.26211845]
[1737213286854,23.05847275,243.85,243.81,0.26211845]
[1737213287060,23.05847275,243.85,243.77,0.26257771]
[1737213287356,23.05847275,243.8,243.77,0.26257771]
[1737213287555,23.05847275,243.8,243.63,13.173583]
[1737213287556,23.05847275,243.78,243.64,0.26272032]
[1737213287769,23.05847275,243.71,243.64,0.26272032]
[1737213287964,23.05847275,243.69,243.64,0.26272032]
[1737213288268,23.05847275,243.71,243.61,0.26361599]
[1737213288458,23.05847275,243.71,243.61,24.04049999]
[1737213288664,23.05847275,243.71,243.61,0.26361599]
[1737213288878,23.05847275,243.71,243.62,23.05847275]
[1737213289065,23.05847275,243.71,243.63,0.26342004]
[1737213289465,23.05847275,243.71,243.63,132.26342004]
[1737213289665,23.05847275,243.71,243.63,132.0]
[1737213290368,23.05847275,243.75,243.69,20.0]
[1737213290562,23.05847275,243.75,243.7,0.26321126]
[1737213290966,23.05847275,243.79,243.7,24.04009526]
[1737213291165,23.05847275,243.75,243.7,0.26321126]
[1737213291352,23.05847275,243.75,243.67,0.263276]
[1737213291557,23.05847275,243.77,243.69,23.776884]
[1737213291765,23.05847275,243.9,243.69,23.776884]
[1737213291766,23.05847275,243.89,243.76,23.05847275]
[1737213291954,23.05847275,243.91,243.82,23.776884]
[1737213292165,23.05847275,243.93,243.83,23.32068533]
[1737213292360,23.05847275,243.91,243.83,0.26221258]
[1737213292760,23.05847275,243.93,243.84,23.776884]
[1737213293078,23.05847275,243.91,243.85,0.2621053]
[1737213293267,23.05847275,243.94,243.86,20.0]
[1737213293467,23.05847275,243.94,243.92,132.0]
[1737213293975,23.05847275,243.94,243.86,20.0]
[1737213294155,23.05847275,243.92,243.87,0.2620262]
[1737213294363,23.05847275,243.9,243.87,0.2620262]
[1737213294670,23.97746353,244.0,243.89,23.05847275]
[1737213294866,23.97746353,244.0,243.91,23.05847275]
[1737213295068,23.97746353,244.0,243.92,0.26172464]
[1737213295775,0.91899078,244.0,243.93,23.05847275]
[1737213295963,23.05847275,243.96,243.87,23.05847275]
[1737213296165,23.05847275,243.94,243.88,0.26204778]
[1737213296463,23.05847275,243.96,243.88,20.26204778]
[1737213296658,23.05847275,243.92,243.83,23.05847275]
[1737213296865,23.05847275,243.91,243.84,0.26237261]
[1737213297063,23.05847275,243.93,243.85,23.05847275]
[1737213297263,0.76877214,243.99,243.86,0.26209146]
[1737213297264,23.05847275,243.95,243.86,0.26209146]
[1737213298576,23.05847275,243.97,243.89,20.0]
[1737213298764,23.97746353,244.0,243.91,23.05847275]
[1737213298969,23.05847275,243.92,243.85,23.05847275]
[1737213299279,0.768735,243.91,243.76,0.26229832]
[1737213299472,0.768735,243.91,243.57,1.7305]
[1737213299473,4.1,243.9,243.77,0.26286936]
[1737213299661,4.1,243.9,243.59,6.8985]
[1737213299662,0.76902515,243.91,243.66,16.394715]
[1737213299862,0.76902515,243.91,243.69,20.0]
[1737213300061,0.76891695,243.93,243.7,1.01299929]
[1737213300270,0.91899078,244.0,243.88,23.05847275]
[1737213300468,0.91899078,244.0,243.89,0.2621453]
[1737213300469,23.05847275,243.97,243.89,0.2621453]
[1737213300672,23.05847275,243.99,243.89,23.32061805]
[1737213300982,23.05847275,243.99,243.92,20.0]
[1737213301178,0.91899078,244.0,243.93,47.09699269]
[1737213301486,0.91899078,244.0,243.98,20.0]
[1737213301684,0.91899078,244.0,243.99,0.26128598]
[1737213301982,0.91899078,244.0,243.99,20.26128598]
[1737213302179,0.91899078,244.0,243.99,67.09664273]
[1737213302386,0.91899078,244.0,243.99,20.26128598]
[1737213302775,0.91899078,244.0,243.99,47.09664273]
[1737213306889,0.91899078,244.0,243.99,48.89838073]
[1737213307077,0.91899078,244.0,243.99,180.89838073]
[1737213307278,0.91899078,244.0,243.99,180.63709475]
[1737213308476,0.91899078,244.0,243.99,48.63709475]
[1737213309375,0.41899078,244.0,243.99,48.63709475]
[1737213309687,0.41899078,244.0,243.99,24.86021075]
[1737213311082,0.41899078,244.0,243.99,25.12145692]
[1737213311475,0.41899078,244.0,243.99,48.89834092]
[1737213312368,0.41899078,244.0,243.99,1.801738]
[1737213312889,0.41899078,244.0,243.99,2.06331661]
[1737213314691,0.41899078,244.0,243.99,25.84020061]
[1737213316793,0.41899078,244.0,243.99,2.06331661]
[1737213317195,0.41899078,244.0,243.99,25.84020061]
[1737213317992,0.41899078,244.0,243.99,2.06331661]
[1737213318178,0.41899078,244.0,243.99,1.801738]
[1737213318580,0.41899078,244.0,243.99,2.06329683]
[1737213320511,0.41899078,244.0,243.99,25.84018083]
[1737213324887,0.41899078,244.0,243.99,24.03844283]
[1737213325891,0.41899078,244.0,243.99,156.03844283]
[1737213326083,0.41899078,244.0,243.99,155.776884]
[1737213327177,0.41899078,244.0,243.98,23.05847275]
[1737213327378,2.0,244.2,244.01,20.0]
[1737213327589,23.05847275,244.18,244.09,23.05847275]
[1737213327783,23.05847275,244.18,244.1,0.26067082]
[1737213328175,23.05847275,244.16,244.1,0.26067082]
[1737213328474,23.05847275,244.16,244.08,0.26081745]
[1737213329380,14.09419666,244.17,244.08,14.35501411]
[1737213329891,0.03,244.18,244.12,34.09419666]
[1737213330086,0.03,244.18,244.14,14.09419666]
[1737213330404,2.0,244.2,244.15,0.26025957]
[1737213330575,16.09419666,244.2,244.13,0.26047093]
[1737213330902,16.09419666,244.2,244.12,14.09419666]
[1737213331297,16.09419666,244.2,244.13,0.26068788]
[1737213331497,2.0,244.2,244.14,14.09419666]
[1737213331800,2.0,244.2,244.16,14.09419666]
[1737213332004,2.0,244.2,244.14,14.09419666]
[1737213332213,2.0,244.2,244.15,0.26049289]
[1737213333399,16.09419666,244.2,244.12,14.09419666]
[1737213333585,16.09419666,244.2,243.98,0.74947595]
[1737213333586,14.09419666,244.16,244.08,14.09419666]
[1737213333906,0.76804179,244.15,244.06,14.09419666]
[1737213334110,14.09419666,244.12,244.04,14.09419666]
[1737213334411,20.78059666,244.16,244.08,14.09419666]
[1737213334704,6.6864,244.16,244.09,0.26086256]
[1737213334903,0.76801712,244.17,244.1,14.09419666]
[1737213335108,14.09419666,244.18,244.11,0.26071857]
[1737213336389,14.09419666,244.16,244.08,14.09419666]
[1737213336590,14.09419666,244.16,244.09,0.26090447]
[1737213337193,14.09419666,244.18,244.1,14.09419666]
[1737213337500,14.09419666,244.18,244.11,0.26072848]
[1737213339096,14.09419666,244.16,244.05,14.09419666]
[1737213339302,14.09419666,244.14,244.06,0.26089376]
[1737213339509,14.09419666,244.17,244.08,14.09419666]
[1737213339811,0.76803338,244.16,244.09,0.26089509]
[1737213340311,14.09419666,244.17,244.1,14.09419666]
[1737213340807,14.09419666,244.15,244.06,14.09419666]
[1737213340995,14.09419666,244.13,244.04,14.09419666]
[1737213341196,14.09419666,244.15,244.06,14.09419666]
[1737213341405,0.76811791,244.14,244.07,0.26106414]
[1737213341595,0.76811791,244.14,244.07,0.26102404]
[1737213342006,14.09419666,244.17,244.08,14.09419666]
[1737213342214,14.09419666,244.17,244.09,0.26088575]
[1737213342403,0.76802859,244.16,244.06,14.09419666]
[1737213342603,14.86222525,244.16,244.07,0.26103888]
[1737213343306,14.09419666,244.08,244.0,0.063]
[1737213343518,14.09419666,244.05,244.0,0.063]
[1737213343708,0.76843616,244.04,244.0,0.063]
[1737213343914,14.09419666,244.02,244.0,0.063]
[1737213344096,8.2713,243.99,243.8,0.26180075]
[1737213344293,0.76889682,243.98,243.83,14.09419666]
[1737213344511,14.09419666,243.95,243.87,14.09419666]
[1737213344711,8.2713,243.99,243.88,0.26228887]
[1737213345014,0.76848412,243.98,243.9,14.09419666]
[1737213345323,14.09419666,243.97,243.88,14.09419666]
[1737213345499,0.76865193,243.96,243.89,0.26213219]
[1737213345702,14.09419666,244.03,243.94,14.09419666]
[1737213346023,14.86263328,244.05,243.96,14.09419666]
[1737213346318,14.86263328,244.05,243.97,0.26163614]
[1737213346518,6.6341,244.06,244.0,14.09419666]
[1737213346912,6.6341,244.06,244.01,0.26150409]
[1737213347109,4.56,244.11,244.04,14.09419666]
[1737213347311,4.56,244.11,244.05,0.26113338]
[1737213347907,14.09419666,244.09,244.05,0.26113338]
[1737213348108,0.76827882,244.08,244.01,0.26138595]
[1737213349019,18.65419666,244.11,244.02,14.09419666]
[1737213349250,6.6341,244.03,243.81,0.063]
[1737213349520,14.86292818,244.02,243.91,14.09419666]
[1737213349726,14.09419666,243.96,243.87,14.09419666]
[1737213349910,0.76875019,243.95,243.81,0.063]
[1737213350097,14.09419666,243.91,243.82,14.09419666]
[1737213350420,14.09419666,243.89,243.81,0.063]
[1737213350830,14.09419666,243.93,243.84,14.09419666]
[1737213351025,14.86312515,243.95,243.87,14.09419666]
[1737213351409,14.86312515,243.95,243.85,14.09419666]
[1737213351931,14.09419666,243.89,243.81,0.063]
[1737213352127,14.09419666,243.93,243.84,14.09419666]
[1737213352318,0.76881771,243.92,243.84,14.09419666]
[1737213352519,14.09419666,243.98,243.89,14.09419666]
[1737213352716,0.76856858,243.97,243.87,14.09419666]
[1737213352919,14.09419666,243.96,243.87,14.09419666]
[1737213353128,14.09419666,243.94,243.85,14.09419666]
[1737213353321,0.76876673,243.93,243.85,14.09419666]
[1737213354214,14.09419666,243.92,243.81,14.15719666]
[1737213354427,0.76890928,243.91,243.81,14.15719666]
[1737213354735,0.76890928,243.91,243.81,0.063]
[1737213354736,14.09419666,243.9,243.81,0.063]
[1737213354923,14.09419666,243.88,243.81,0.063]
[1737213355234,6.6341,243.86,243.81,0.063]
[1737213356237,14.09419666,243.91,243.81,0.063]
[1737213356437,0.76892537,243.9,243.81,0.063]
[1737213356637,14.09419666,243.89,243.81,0.063]
[1737213356835,0.768893,243.88,243.81,0.063]
[1737213357335,14.09419666,243.89,243.81,0.063]
[1737213357532,6.6341,243.92,243.84,14.09419666]
[1737213357837,7.40289088,243.92,243.86,14.09419666]
[1737213358518,14.09419666,243.91,243.81,0.063]
[1737213358722,0.76895239,243.91,243.86,14.09419666]
[1737213359614,6.6341,243.92,243.88,14.09419666]
[1737213359937,0.7688281,243.94,243.9,14.09419666]
[1737213360137,0.76872047,243.97,243.9,14.09419666]
[1737213360635,14.862917,244.03,243.95,14.09419666]
[1737213360847,0.76872034,244.03,243.97,14.09419666]
[1737213361039,6.6756,244.05,243.97,14.09419666]
[1737213361248,6.6756,244.05,244.01,14.09419666]
[1737213361423,0.76834078,244.1,244.03,14.09419666]
[1737213362651,0.76821965,244.11,244.05,14.09419666]
[1737213362831,1.6217,244.14,244.05,14.09419666]
[1737213364657,14.09419666,244.12,244.03,14.09419666]
[1737213364956,0.76831311,244.11,244.01,14.09419666]
[1737213365845,0.76831311,244.11,244.03,14.09419666]
[1737213366455,14.09419666,244.1,244.01,14.15719666]
[1737213366659,14.09419666,244.04,244.01,0.063]
[1737213366842,0.76843957,244.03,244.01,0.063]
[1737213367042,0.76844375,244.05,244.01,0.063]
[1737213368053,0.76840692,244.05,244.01,0.063]
[1737213369070,0.79837249,244.06,244.01,0.063]
[1737213369289,0.03,244.06,244.01,14.15719666]
[1737213369648,0.03,244.06,244.01,0.063]
[1737213369847,14.09419666,244.02,244.01,0.063]
[1737213370271,14.86283494,244.02,244.01,0.063]
[1737213371581,0.76863828,244.02,244.01,0.063]
[1737213371763,14.86283494,244.02,244.01,0.063]
[1737213372464,0.76863828,244.02,244.01,0.063]
[1737213372769,14.09419666,244.02,244.01,0.063]
[1737213374549,14.09419666,244.02,243.88,14.09419666]
[1737213374759,14.09419666,243.96,243.86,14.09419666]
[1737213374962,14.09419666,243.94,243.84,14.09419666]
[1737213375268,0.7688549,243.93,243.86,14.09419666]
[1737213375467,0.76881246,243.95,243.86,14.09419666]
[1737213376058,14.09419666,243.96,243.86,14.09419666]
[1737213376255,0.76880278,243.95,243.86,14.09419666]
[1737213376651,0.76880278,243.95,243.81,0.063]
[1737213376652,14.09419666,243.87,243.81,0.063]
[1737213376857,14.09419666,243.91,243.81,14.15719666]
[1737213377068,0.76889029,243.9,243.83,14.09419666]
[1737213377272,0.76889029,243.9,243.85,14.09419666]
[1737213377454,0.76883973,243.93,243.85,14.09419666]
[1737213377654,14.09419666,243.89,243.81,0.063]
[1737213377867,0.76900259,243.88,243.81,0.063]
[1737213378167,0.76900259,243.88,243.81,14.15719666]
[1737213378968,14.09419666,243.87,243.81,0.063]
[1737213379150,14.09419666,243.84,243.81,0.063]
[1737213379350,0.76921303,243.83,243.81,0.063]
[1737213379759,14.09419666,243.88,243.81,0.063]
[1737213379760,0.76920403,243.87,243.81,0.063]
[1737213380755,0.76903589,243.89,243.81,0.063]
[1737213380970,0.76903589,243.89,243.82,14.09419666]
[1737213381271,0.76903589,243.89,243.81,0.063]
[1737213381858,4.86923589,243.89,243.81,0.063]
[1737213384080,0.76903589,243.89,243.81,0.063]
[1737213384769,14.09419666,243.88,243.81,0.063]
[1737213385080,0.76909924,243.87,243.81,0.063]
[1737213385678,6.41427474,244.06,243.86,14.09419666]
[1737213385972,6.41427474,244.06,244.03,14.09419666]
[1737213386152,0.35919423,244.05,243.97,14.09419666]
[1737213386353,0.35919423,244.05,243.87,12.91711474]
[1737213386354,0.35919423,244.05,243.95,14.09419666]
[1737213386585,14.45339089,244.05,243.95,14.09419666]
[1737213387387,0.35919423,244.05,243.95,14.09419666]
[1737213387561,0.38919423,244.06,243.95,14.09419666]
[1737213387758,0.38919423,244.06,243.97,14.09419666]
[1737213387977,0.38919423,244.06,243.99,14.09419666]
[1737213388573,0.03,244.06,243.99,14.09419666]
[1737213388774,0.38919423,244.06,243.99,14.09419666]
[1737213389363,0.38919423,244.06,243.97,14.09419666]
[1737213389578,14.48339089,244.06,243.95,14.09419666]
[1737213389979,0.38919423,244.06,243.97,14.09419666]
[1737213390555,0.38919423,244.06,243.91,0.61481991]
[1737213390556,0.38919423,244.06,243.99,14.09419666]
[1737213390777,0.38919423,244.06,243.97,14.09419666]
[1737213391188,14.48339089,244.06,243.97,14.09419666]
[1737213391362,0.38919423,244.06,243.97,14.09419666]
[1737213391557,0.38919423,244.06,243.99,14.09419666]
[1737213391792,0.03,244.06,243.99,14.09419666]
[1737213392076,0.38919423,244.06,243.97,14.09419666]
[1737213392280,14.48339089,244.06,243.95,14.09419666]
[1737213393181,14.09419666,244.04,243.95,14.09419666]
[1737213393483,14.09419666,244.02,243.93,14.09419666]
[1737213393685,0.35919423,244.01,243.93,14.09419666]
[1737213394480,0.35919423,244.01,243.95,14.09419666]
[1737213394678,0.35919423,244.03,243.95,14.09419666]
[1737213395488,0.38919423,244.06,244.0,14.09419666]
[1737213396183,0.03,244.06,244.04,14.09419666]
[1737213396488,0.03,244.06,244.02,14.09419666]
[1737213396865,0.03,244.06,244.04,14.09419666]
[1737213397391,0.03,244.06,244.02,14.09419666]
[1737213397992,0.03,244.06,244.04,14.09419666]
[1737213398982,0.03,244.06,244.02,14.09419666]
[1737213400084,0.03,244.06,244.04,14.09419666]
[1737213403786,0.03,244.06,244.05,0.614555]
[1737213405398,0.03,244.06,244.05,9.42349459]
[1737213405698,0.03,244.06,244.05,8.80893959]
[1737213407971,0.03,244.06,243.97,0.61453189]
[1737213408187,0.03,244.06,244.01,8.80893959]
[1737213408385,0.03,244.06,244.05,8.80893959]
[1737213409488,0.03,244.06,244.03,8.80893959]
[1737213409800,14.6985,244.18,243.95,0.61459638]
[1737213409801,0.35919423,244.12,244.06,1.6171]
[1737213410004,2.0,244.2,244.07,0.61428737]
[1737213410287,2.0,244.2,244.17,8.80893959]
[1737213412181,0.35919423,244.19,244.17,8.80893959]
[1737213413592,2.0,244.2,244.17,8.80893959]
[1737213414575,2.0,244.2,244.19,8.80893959]
[1737213415092,2.0,244.2,244.16,8.80893959]
[1737213416490,2.03,244.2,244.18,8.80893959]
[1737213421386,2.03,244.2,244.19,0.61423879]
[1737213421977,2.03,244.2,244.18,8.80893959]
[1737213422378,2.03,244.2,244.19,0.61419121]
[1737213422580,2.03,244.2,244.19,0.61419266]
[1737213422877,6.4325,244.37,244.22,20.0]
[1737213423079,0.35919423,244.36,244.23,0.61404343]
[1737213423294,0.35919423,244.39,244.35,8.80893959]
[1737213423487,19.20104948,244.51,244.38,8.80893959]
[1737213423706,8.80893959,244.47,244.38,8.80893959]
[1737213423873,0.35919423,244.46,244.38,8.80893959]
[1737213424073,0.35919423,244.46,244.4,8.80893959]
[1737213424483,0.35919423,244.46,244.38,8.80893959]
[1737213424695,0.35919423,244.46,244.43,8.80893959]
[1737213424881,0.35919423,244.49,244.43,8.80893959]
[1737213425082,51.61518186,244.5,244.47,8.80893959]
[1737213425275,1.7,244.52,244.49,17.61787918]
[1737213425480,6.38427474,244.64,244.54,20.0]
[1737213425696,0.35919423,244.67,244.59,8.80893959]
[1737213425898,8.80893959,244.66,244.59,8.80893959]
[1737213426098,23.081215,244.68,244.59,8.80893959]
[1737213426686,10.46647474,244.97,244.67,2.1445]
[1737213426875,0.35919423,244.96,244.68,0.61272813]